bitfinex/quotes_BTCUSD_20220211
["timestamp","ask_amount","ask_price","bid_price","bid_amount"]
[1644589462520,0.057267,43682.0,43669.0,0.0007462]
[1644589462723,0.3,43684.0,43671.0,0.057265]
[1644589462920,0.36996097,43677.0,43671.0,0.057265]
[1644589463119,0.36996097,43677.0,43671.0,0.08182619]
[1644589463319,0.68150165,43677.0,43673.0,0.32780443]
[1644589463919,0.68150165,43677.0,43674.0,0.057257]
[1644589464121,0.68224755,43677.0,43674.0,0.057257]
[1644589464319,0.0007459,43677.0,43674.0,0.057257]
[1644589464919,0.00025372,43682.0,43677.0,0.00092649]
[1644589465121,0.00025372,43680.0,43677.0,0.05818249]
[1644589465324,0.35596818,43684.0,43677.0,0.00092649]
[1644589465519,0.27787449,43683.0,43677.0,0.00092649]
[1644589465966,0.30350948,43678.0,43677.0,0.00092649]
[1644589466366,0.00025372,43682.0,43677.0,0.00092649]
[1644589466567,0.27812821,43683.0,43677.0,0.00092649]
[1644589467466,0.057261,43682.0,43677.0,0.00092649]
[1644589467666,0.05751472,43682.0,43677.0,0.00092649]
[1644589467868,0.25128068,43681.0,43674.0,0.00092649]
[1644589468069,0.29884123,43675.0,43674.0,0.00092649]
[1644589472417,0.00025372,43678.0,43674.0,0.02548768]
[1644589472617,0.29305548,43690.0,43675.0,0.057254]
[1644589472618,0.00099958,43679.0,43675.0,0.057254]
[1644589472817,0.00074586,43679.0,43675.0,0.08181519]
[1644589473363,0.00074586,43679.0,43678.0,0.33215788]
[1644589473666,0.31698898,43689.0,43678.0,0.38940688]
[1644589473667,0.00025372,43688.0,43678.0,0.38940688]
[1644589473863,0.51254127,43689.0,43678.0,0.38940688]
[1644589473864,0.00074589,43679.0,43678.0,0.38940688]
[1644589474163,0.00025372,43689.0,43679.0,1.0]
[1644589474363,0.00298283,43690.0,43679.0,1.0]
[1644589474364,0.00025372,43683.0,43679.0,1.0]
[1644589474564,0.00025372,43689.0,43679.0,1.0]
[1644589474767,0.00025372,43692.0,43680.0,0.02456119]
[1644589474966,0.00025372,43689.0,43678.0,0.33215788]
[1644589475166,0.32404633,43687.0,43680.0,0.114493]
[1644589475365,0.278005,43686.0,43680.0,0.114493]
[1644589475566,0.27825872,43686.0,43680.0,0.114493]
[1644589475966,0.61024945,43686.0,43681.0,0.33647362]
[1644589476167,0.00050232,43685.0,43681.0,0.33647362]
[1644589476367,0.00075604,43685.0,43681.0,0.33647362]
[1644589476565,0.00075604,43685.0,43680.0,0.114493]
[1644589476767,0.28964652,43685.0,43677.0,0.00092649]
[1644589477206,0.2891442,43685.0,43677.0,0.00092649]
[1644589477408,0.00050232,43683.0,43677.0,0.00092649]
[1644589477608,0.00050232,43683.0,43680.0,0.35242533]
[1644589477809,0.00050232,43683.0,43681.0,0.02456119]
[1644589478206,0.00050232,43683.0,43680.0,0.35162533]
[1644589478412,0.00025372,43684.0,43680.0,0.35162533]
[1644589478613,0.00074615,43684.0,43677.0,0.02548768]
[1644589478812,0.00099987,43684.0,43679.0,0.12901415]
[1644589479208,0.00074615,43684.0,43679.0,0.12901415]
[1644589479610,0.27497168,43690.0,43681.0,0.28724956]
[1644589479611,0.00025372,43685.0,43681.0,0.28724956]
[1644589479809,0.00074616,43684.0,43679.0,0.057252]
[1644589480009,0.00074616,43684.0,43680.0,0.057252]
[1644589480411,0.00099988,43684.0,43677.0,0.02548768]
[1644589480612,0.00099988,43684.0,43677.0,0.00092649]
[1644589480859,0.00025372,43684.0,43677.0,0.00092649]
[1644589481065,0.00074616,43683.0,43677.0,0.00092649]
[1644589481960,0.31941773,43679.0,43677.0,0.00092649]
[1644589483564,0.3500602,43678.0,43677.0,0.00092649]
[1644589486207,0.31941773,43679.0,43677.0,0.00092649]
[1644589489261,0.27525083,43678.0,43677.0,0.00092649]
[1644589489863,0.22525083,43678.0,43677.0,0.00092649]
[1644589490065,0.53078775,43678.0,43677.0,0.00092649]
[1644589490262,0.58805675,43678.0,43677.0,0.00092649]
[1644589490463,0.91147775,43678.0,43677.0,0.00092649]
[1644589490664,0.58805675,43678.0,43677.0,0.00092649]
[1644589491062,0.91147775,43678.0,43677.0,0.00092649]
[1644589491262,0.58805675,43678.0,43677.0,0.00092649]
[1644589492111,0.65236878,43669.0,43663.0,0.00092649]
[1644589492411,0.65236878,43669.0,43659.0,0.52008241]
[1644589492612,0.27501353,43668.0,43659.0,0.52008241]
[1644589493110,0.27501353,43668.0,43660.0,0.02456119]
[1644589493310,0.27501353,43668.0,43661.0,0.057277]
[1644589494315,0.27501353,43668.0,43662.0,0.00074603]
[1644589495312,0.27501353,43668.0,43660.0,0.02456119]
[1644589495513,0.27501353,43668.0,43663.0,0.00068292]
[1644589496565,0.27501353,43668.0,43659.0,0.34903412]
[1644589496766,0.27501353,43668.0,43663.0,0.00068291]
[1644589497167,0.1956137,43673.0,43663.0,0.00068291]
[1644589497366,0.28560521,43674.0,43663.0,0.00068291]
[1644589497567,0.47579847,43674.0,43663.0,0.00068291]
[1644589497767,0.47579847,43674.0,43665.0,0.30126825]
[1644589497968,0.28018477,43674.0,43667.0,0.06819577]
[1644589498167,0.30675881,43671.0,43666.0,0.00068287]
[1644589498569,0.25675881,43671.0,43666.0,0.00068287]
[1644589498971,0.25675881,43671.0,43665.0,0.057272]
[1644589499169,0.25675881,43671.0,43666.0,0.00068286]
[1644589499917,0.3037621,43673.0,43666.0,0.05795386]
[1644589500114,0.3037621,43673.0,43666.0,0.057271]
[1644589500314,0.51483361,43676.0,43666.0,0.05796538]
[1644589500315,0.85157503,43676.0,43666.0,0.05796538]
[1644589500916,0.26396672,43669.0,43666.0,0.05796538]
[1644589501115,0.26396672,43669.0,43666.0,0.00069438]
[1644589501316,0.26396672,43669.0,43664.0,0.02456119]
[1644589501616,0.1956137,43675.0,43665.0,0.0006944]
[1644589502114,0.2528877,43675.0,43665.0,0.0006944]
[1644589502319,0.2528877,43675.0,43668.0,0.40338503]
[1644589502517,0.40496312,43678.0,43668.0,0.40338503]
[1644589502518,0.1956137,43676.0,43671.0,0.28433707]
[1644589502917,0.05,43676.0,43671.0,0.28433707]
[1644589503369,0.05,43676.0,43672.0,0.057261]
[1644589504770,0.05,43676.0,43674.0,0.00907745]
[1644589504974,0.05,43676.0,43673.0,0.057261]
[1644589505376,0.05,43676.0,43674.0,0.00907745]
[1644589505775,0.05,43676.0,43673.0,0.06633845]
[1644589506074,0.05,43676.0,43673.0,0.12359667]
[1644589506272,0.05,43676.0,43673.0,0.12429022]
[1644589506474,0.05070974,43681.0,43676.0,0.057251]
[1644589506774,0.05070974,43681.0,43679.0,0.39234597]
[1644589507211,0.05070974,43681.0,43679.0,0.38326852]
[1644589507412,0.05070974,43681.0,43679.0,0.39234597]
[1644589507413,0.05,43681.0,43679.0,0.39234597]
[1644589507614,0.05,43681.0,43678.0,0.057252]
[1644589507814,0.323421,43680.0,43677.0,0.0459]
[1644589508013,0.057266,43680.0,43678.0,0.23]
[1644589508214,0.27131366,43679.0,43678.0,0.23]
[1644589508413,0.34449741,43679.0,43678.0,0.23]
[1644589508812,0.27131366,43679.0,43678.0,0.23]
[1644589510013,0.27131366,43679.0,43678.0,0.06879573]
[1644589511968,0.46692736,43679.0,43678.0,0.06879573]
[1644589512171,0.02621561,43677.0,43665.0,0.1956137]
[1644589512369,0.02621561,43677.0,43663.0,0.1956137]
[1644589512370,0.057277,43672.0,43663.0,0.1956137]
[1644589512566,0.057277,43672.0,43662.0,0.1956137]
[1644589512769,0.057277,43672.0,43667.0,0.34037948]
[1644589512968,0.057277,43672.0,43666.0,0.369513]
[1644589513268,0.36037771,43674.0,43665.0,0.00907745]
[1644589513466,0.36037771,43674.0,43667.0,0.0007463]
[1644589513767,0.41765171,43674.0,43667.0,0.0007463]
[1644589513966,0.30138691,43668.0,43667.0,0.0007463]
[1644589514166,0.41765171,43674.0,43667.0,0.0007463]
[1644589514167,0.61321388,43674.0,43667.0,0.0007463]
[1644589514368,0.55593988,43674.0,43667.0,0.0007463]
[1644589514617,0.55593988,43674.0,43663.0,0.057273]
[1644589514820,0.61321088,43674.0,43668.0,0.00074629]
[1644589515117,0.25169165,43673.0,43668.0,0.00074629]
[1644589515719,0.25169165,43673.0,43662.0,0.33349153]
[1644589515918,0.25169165,43673.0,43668.0,0.00074629]
[1644589515919,0.057273,43672.0,43668.0,0.00074629]
[1644589516720,0.05583501,43672.0,43668.0,0.00074629]
[1644589516919,0.11311201,43672.0,43668.0,0.23]
[1644589517120,0.11311201,43672.0,43668.0,0.23074629]
[1644589517925,0.19313734,43669.0,43668.0,0.23074629]
[1644589518123,0.51655834,43669.0,43668.0,0.23]
[1644589518367,0.51655834,43669.0,43668.0,0.23074629]
[1644589518766,0.19313734,43669.0,43668.0,0.23074629]
[1644589518968,0.51655834,43669.0,43668.0,0.23074629]
[1644589519167,0.57384134,43669.0,43668.0,0.23074629]
[1644589519467,0.25042034,43669.0,43668.0,0.23]
[1644589519667,0.57384134,43669.0,43668.0,0.23]
[1644589521370,0.057283,43669.0,43668.0,0.23]
[1644589521570,0.380704,43669.0,43668.0,0.23]
[1644589522021,0.323421,43669.0,43668.0,0.23]
[1644589522314,0.25169165,43673.0,43668.0,0.23]
[1644589522512,0.25169165,43673.0,43666.0,0.00073213]
[1644589522513,0.25169165,43673.0,43666.0,0.00907745]
[1644589523517,0.30896465,43673.0,43666.0,0.00907745]
[1644589523917,0.323421,43672.0,43666.0,0.00907745]
[1644589524316,0.30896465,43673.0,43666.0,0.00907745]
[1644589524517,0.323421,43672.0,43666.0,0.00907745]
[1644589524816,0.25169165,43673.0,43666.0,0.00907745]
[1644589525216,0.08204916,43668.0,43664.0,0.05727237]
[1644589525416,0.323421,43667.0,43664.0,0.05727237]
[1644589526463,0.26490775,43666.0,43664.0,0.05727237]
[1644589526662,0.323421,43665.0,43664.0,0.05727237]
[1644589527163,0.26490775,43666.0,43664.0,0.05727237]
[1644589527361,0.36526447,43667.0,43664.0,0.05727237]
[1644589527562,0.323421,43666.0,43664.0,0.05727237]
[1644589527763,0.19556217,43673.0,43664.0,0.05727237]
[1644589527966,0.2920137,43679.0,43677.0,1.22766314]
[1644589528167,0.437969,43678.0,43677.0,1.22766314]
[1644589528363,0.82590974,43678.0,43677.0,1.22766314]
[1644589528763,1.13751289,43678.0,43677.0,1.22766314]
[1644589528966,0.86412063,43678.0,43677.0,1.22766314]
[1644589529362,0.74957263,43678.0,43677.0,1.22766314]
[1644589530912,1.08149123,43678.0,43677.0,1.22766314]
[1644589531512,0.40796754,43679.0,43677.0,1.22766314]
[1644589531715,0.057272,43680.0,43677.0,1.22766314]
[1644589531716,0.00074617,43680.0,43677.0,1.22766314]
[1644589532512,0.00074617,43680.0,43678.0,0.42104925]
[1644589532714,0.59359813,43686.0,43678.0,0.42104925]
[1644589532915,0.00074617,43681.0,43678.0,0.42104925]
[1644589533262,0.00074617,43681.0,43678.0,0.34109577]
[1644589533660,0.00074617,43681.0,43677.0,1.15293103]
[1644589533862,0.05725788,43683.0,43677.0,1.15293103]
[1644589534060,0.00074616,43682.0,43677.0,1.15293103]
[1644589534663,0.05800416,43682.0,43677.0,1.15293103]
[1644589535062,0.11451749,43682.0,43677.0,1.15293103]
[1644589535263,0.11526365,43682.0,43677.0,1.15293103]
[1644589535561,0.05800565,43682.0,43677.0,1.15293103]
[1644589535962,0.00074616,43682.0,43677.0,1.15293103]
[1644589536162,0.40083658,43685.0,43677.0,1.15293103]
[1644589536364,0.324539,43680.0,43677.0,1.15293103]
[1644589537214,0.38180178,43680.0,43677.0,1.15293103]
[1644589537414,0.05726278,43680.0,43677.0,1.15293103]
[1644589537613,0.057262,43680.0,43677.0,1.15293103]
[1644589538214,0.00074617,43681.0,43677.0,1.15293103]
[1644589538615,0.25280854,43682.0,43677.0,1.15293103]
[1644589538819,0.05800517,43681.0,43677.0,1.15293103]
[1644589539015,0.057262,43680.0,43677.0,1.15293103]
[1644589539516,0.057262,43680.0,43677.0,1.38293103]
[1644589539816,0.323421,43679.0,43677.0,1.38293103]
[1644589540616,0.32199025,43678.0,43677.0,1.38293103]
[1644589541164,0.323421,43678.0,43677.0,1.38293103]
[1644589542063,0.17179938,43679.0,43677.0,1.38293103]
[1644589542462,0.323421,43678.0,43677.0,1.38293103]
[1644589542660,0.08469901,43678.0,43677.0,1.38293103]
[1644589542861,0.28881976,43678.0,43677.0,1.38293103]
[1644589545510,0.11453638,43679.0,43677.0,1.38293103]
[1644589546110,0.323421,43678.0,43677.0,1.38293103]
[1644589546511,0.05727,43679.0,43677.0,1.38293103]
[1644589547513,0.05727,43679.0,43678.0,0.27385356]
[1644589547714,0.00074617,43680.0,43678.0,0.27385356]
[1644589548114,0.32842956,43682.0,43678.0,0.27394805]
[1644589548375,0.50491907,43684.0,43678.0,9.449e-05]
[1644589548578,0.30937153,43684.0,43678.0,0.27750119]
[1644589548776,0.30937153,43684.0,43678.0,0.27528276]
[1644589548979,0.057256,43682.0,43678.0,9.449e-05]
[1644589549579,0.057256,43682.0,43678.0,0.27408234]
[1644589549778,0.057256,43682.0,43678.0,9.449e-05]
[1644589549979,0.057256,43682.0,43678.0,0.27721867]
[1644589550179,0.057256,43682.0,43678.0,9.449e-05]
[1644589551385,0.11451131,43682.0,43678.0,9.449e-05]
[1644589551588,0.1722693,43683.0,43682.0,0.114512]
[1644589551589,0.32392161,43683.0,43682.0,0.114512]
[1644589551780,0.36662753,43684.0,43682.0,0.114512]
[1644589552421,0.36662753,43684.0,43677.0,1.50700356]
[1644589552622,0.36662753,43684.0,43677.0,1.56425756]
[1644589552822,0.057256,43684.0,43677.0,1.56425756]
[1644589553026,0.057249,43686.0,43682.0,0.114512]
[1644589553422,0.057249,43686.0,43682.0,0.19330492]
[1644589554026,0.05750172,43688.0,43682.0,0.39330492]
[1644589554230,0.057248,43688.0,43684.0,0.29582501]
[1644589554624,0.05750172,43688.0,43684.0,0.29582501]
[1644589554824,0.057248,43688.0,43684.0,0.29582501]
[1644589555426,0.05750172,43688.0,43684.0,0.29582501]
[1644589555766,0.05799433,43688.0,43684.0,0.29582501]
[1644589556166,0.05824805,43688.0,43684.0,0.29582501]
[1644589556367,0.05799433,43688.0,43684.0,0.29582501]
[1644589556668,0.057248,43688.0,43684.0,0.29582501]
[1644589556869,0.05799433,43688.0,43684.0,0.29582501]
[1644589557868,0.057248,43688.0,43684.0,0.29582501]
[1644589558070,0.05799433,43688.0,43684.0,0.29582501]
[1644589558470,0.11524264,43688.0,43684.0,0.29582501]
[1644589558968,0.11449631,43688.0,43684.0,0.29582501]
[1644589559373,0.11499837,43688.0,43684.0,0.29582501]
[1644589559822,0.05775006,43688.0,43684.0,0.29582501]
[1644589560219,0.057248,43688.0,43684.0,0.29582501]
[1644589560420,0.05799465,43688.0,43684.0,0.29582501]
[1644589560820,0.05799465,43688.0,43684.0,0.35307101]
[1644589561419,0.057248,43688.0,43684.0,0.35307101]
[1644589561621,0.05799465,43688.0,43684.0,0.35307101]
[1644589562619,0.057248,43688.0,43684.0,0.35307101]
[1644589563022,0.05799465,43688.0,43684.0,0.35307101]
[1644589563864,0.057248,43688.0,43684.0,0.35307101]
[1644589564066,0.05799465,43688.0,43684.0,0.35307101]
[1644589564764,0.00025372,43689.0,43686.0,0.2]
[1644589565066,0.01,43699.0,43687.0,0.160371]
[1644589565067,0.00025372,43691.0,43687.0,0.160371]
[1644589565263,0.20554754,43699.0,43687.0,0.160371]
[1644589565264,0.00025372,43692.0,43687.0,0.103133]
[1644589565463,0.00074665,43688.0,43687.0,0.0459]
[1644589565665,0.00074665,43688.0,43687.0,0.36262511]
[1644589566066,0.00074665,43688.0,43687.0,0.41985911]
[1644589566264,0.00025372,43690.0,43687.0,0.41985911]
[1644589566466,0.00025372,43693.0,43688.0,0.5771069]
[1644589566665,0.00025372,43698.0,43692.0,0.25226209]
[1644589566866,0.01,43699.0,43692.0,0.25226209]
[1644589567317,0.06723578,43699.0,43694.0,0.057236]
[1644589567515,0.12447078,43699.0,43694.0,0.057236]
[1644589567814,0.00050175,43698.0,43694.0,0.057236]
[1644589568214,0.00075547,43698.0,43694.0,0.057236]
[1644589568415,0.05723807,43697.0,43695.0,0.057239]
[1644589569014,0.05823731,43698.0,43695.0,0.057239]
[1644589569216,0.05798359,43698.0,43695.0,0.057239]
[1644589569818,0.057237,43698.0,43695.0,0.057239]
[1644589570418,0.1144745,43698.0,43695.0,0.057239]
[1644589571663,0.057237,43698.0,43695.0,0.057239]
[1644589571863,0.042237,43698.0,43695.0,0.057239]
[1644589573166,0.01100031,43699.0,43695.0,0.287239]
[1644589573364,0.01025372,43699.0,43695.0,0.287239]
[1644589573565,0.01,43699.0,43695.0,0.287239]
[1644589573764,0.01074659,43699.0,43695.0,0.287239]
[1644589574165,0.01074659,43699.0,43696.0,0.40541444]
[1644589574366,0.01074659,43699.0,43698.0,0.5603386]
[1644589574616,0.01,43699.0,43698.0,0.8502608]
[1644589575313,0.00074658,43700.0,43699.0,0.5]
[1644589575914,0.00025372,43705.0,43701.0,0.08159249]
[1644589576114,0.19580126,43707.0,43701.0,0.08159249]
[1644589576315,0.00050276,43702.0,43701.0,0.08159249]
[1644589576914,0.00050276,43702.0,43701.0,0.13881849]
[1644589577114,0.00025372,43706.0,43701.0,0.13881849]
[1644589577318,0.00100185,43704.0,43701.0,0.13881849]
[1644589577513,0.00074813,43704.0,43701.0,0.13881849]
[1644589577914,0.00074813,43704.0,43701.0,0.19604349]
[1644589578371,0.00025372,43706.0,43701.0,0.13881849]
[1644589578569,0.20554754,43709.0,43701.0,0.13881849]
[1644589578570,0.00074813,43705.0,43701.0,0.13881849]
[1644589578970,0.00074813,43705.0,43701.0,0.19604349]
[1644589579371,0.00025372,43706.0,43701.0,0.19604349]
[1644589579571,0.30095372,43708.0,43701.0,0.19604349]
[1644589579572,0.00025372,43707.0,43701.0,0.13881849]
[1644589579770,0.00074813,43705.0,43701.0,0.13881849]
[1644589580474,0.00074813,43705.0,43702.0,0.057225]
[1644589580672,0.01,43709.0,43702.0,0.114448]
[1644589580673,0.00025372,43707.0,43702.0,0.114448]
[1644589580873,0.01,43709.0,43702.0,0.057223]
[1644589580874,0.00074756,43705.0,43702.0,0.057223]
[1644589581873,0.00025372,43708.0,43702.0,0.057223]
[1644589582118,0.01,43709.0,43702.0,0.057223]
[1644589582119,0.00074756,43706.0,43703.0,0.057227]
[1644589582624,0.00074756,43706.0,43697.0,0.03192583]
[1644589582819,0.00100128,43706.0,43697.0,0.03192583]
[1644589583119,0.00025372,43706.0,43703.0,0.057227]
[1644589583319,0.00074757,43704.0,43703.0,0.057227]
[1644589583618,0.00074757,43704.0,43702.0,0.114453]
[1644589584218,0.00025372,43707.0,43702.0,0.114453]
[1644589584420,0.00025372,43708.0,43702.0,0.114453]
[1644589584621,0.01,43709.0,43702.0,0.114453]
[1644589584622,0.00074813,43705.0,43702.0,0.114453]
[1644589585019,0.30285758,43704.0,43702.0,0.114453]
[1644589587465,0.36008334,43704.0,43702.0,0.114453]
[1644589588168,0.36008334,43704.0,43695.0,0.23]
[1644589588169,0.27151413,43703.0,43695.0,0.23]
[1644589588372,0.27176785,43703.0,43695.0,0.23]
[1644589588668,0.1325473,43701.0,43695.0,0.23]
[1644589588867,0.38587707,43696.0,43695.0,0.287245]
[1644589589268,0.68125601,43696.0,43695.0,0.23]
[1644589589539,0.66906453,43696.0,43695.0,0.23]
[1644589589734,0.38587707,43696.0,43695.0,0.23]
[1644589589935,0.05723992,43697.0,43695.0,0.23]
[1644589590138,0.00025372,43698.0,43695.0,0.23]
[1644589590338,0.00025372,43699.0,43695.0,0.23]
[1644589590535,0.00074817,43698.0,43695.0,0.23]
[1644589591036,0.05797871,43698.0,43695.0,0.287229]
[1644589591438,0.05723054,43698.0,43695.0,0.287229]
[1644589592138,0.05723054,43698.0,43696.0,0.057229]
[1644589593364,0.00074816,43699.0,43697.0,0.08935636]
[1644589593564,0.00074816,43699.0,43698.0,0.057229]
[1644589593966,0.00025372,43705.0,43698.0,0.057229]
[1644589594165,0.00025372,43705.0,43698.0,0.11446]
[1644589594166,0.00074815,43701.0,43698.0,0.11446]
[1644589594564,0.05797843,43701.0,43698.0,0.11446]
[1644589595166,0.05723028,43701.0,43698.0,0.11446]
[1644589596364,0.10723028,43701.0,43698.0,0.11446]
[1644589598817,0.05723028,43701.0,43698.0,0.11446]
[1644589599817,0.11446128,43701.0,43698.0,0.11446]
[1644589600019,0.11446128,43701.0,43700.0,1.02125881]
[1644589600220,0.057231,43701.0,43700.0,1.02125881]
[1644589601068,0.11446056,43702.0,43700.0,1.02125881]
[1644589601772,0.59438407,43701.0,43700.0,1.02125881]
[1644589601971,0.32096307,43701.0,43700.0,1.02125881]
[1644589602171,0.05,43701.0,43700.0,1.02125881]
[1644589602970,0.12040167,43701.0,43700.0,1.02125881]
[1644589603375,0.44382267,43701.0,43700.0,1.02125881]
[1644589603572,0.12040167,43701.0,43700.0,1.02125881]
[1644589604272,0.05,43701.0,43700.0,1.02125881]
[1644589604714,0.4244781,43702.0,43700.0,1.02125881]
[1644589604915,0.323421,43701.0,43700.0,1.02125881]
[1644589605116,0.373421,43701.0,43700.0,1.02125881]
[1644589605317,0.24554754,43701.0,43700.0,0.36903268]
[1644589606317,0.05,43701.0,43700.0,0.36903268]
[1644589606516,0.24554754,43701.0,43700.0,0.36903268]
[1644589607714,0.24554754,43701.0,43700.0,0.33887568]
[1644589608370,0.05,43701.0,43700.0,0.33887568]
[1644589609872,0.3100081,43702.0,43700.0,0.33887568]
[1644589610270,0.11446056,43702.0,43700.0,0.33887568]
[1644589610972,0.17169856,43702.0,43700.0,0.33887568]
[1644589611173,0.11446056,43702.0,43700.0,0.33887568]
[1644589611470,0.3100081,43702.0,43700.0,0.33887568]
[1644589612615,0.3100081,43702.0,43700.0,0.18068817]
[1644589613619,0.3588981,43702.0,43700.0,0.18068817]
[1644589614519,0.05,43701.0,43700.0,0.18068817]
[1644589614919,0.29443754,43701.0,43700.0,0.18068817]
[1644589615217,0.35167454,43701.0,43700.0,0.18068817]
[1644589615419,0.107237,43701.0,43700.0,0.18068817]
[1644589615618,0.35167454,43701.0,43700.0,0.18068817]
[1644589619614,0.29443754,43701.0,43700.0,0.18068817]
[1644589619817,0.05,43701.0,43700.0,0.18068817]
[1644589621416,0.24554307,43701.0,43700.0,0.18068817]
[1644589621822,0.11446056,43702.0,43700.0,0.18068817]
[1644589621823,0.31000363,43702.0,43700.0,0.18068817]
[1644589622022,0.05819515,43703.0,43701.0,0.28925531]
[1644589622023,0.25373822,43703.0,43701.0,0.28925531]
[1644589622219,0.00071153,43703.0,43701.0,0.33515531]
[1644589622419,0.00071153,43703.0,43702.0,0.28581871]
[1644589622818,0.00025372,43705.0,43702.0,0.28581871]
[1644589623045,0.00071152,43705.0,43703.0,0.0889736]
[1644589623278,0.05793298,43705.0,43704.0,0.47702021]
[1644589623479,0.00071152,43705.0,43704.0,0.47702021]
[1644589623680,0.00071152,43705.0,43704.0,0.52292021]
[1644589623882,0.00025372,43708.0,43704.0,0.52292021]
[1644589623883,0.00025372,43708.0,43705.0,1.61541802]
[1644589624079,0.01,43709.0,43706.0,0.24135884]
[1644589624080,0.01025372,43709.0,43706.0,0.24135884]
[1644589624280,0.01,43709.0,43707.0,0.5393837]
[1644589624581,0.01,43709.0,43708.0,0.38606587]
[1644589624779,0.0001,43709.0,43708.0,0.38606587]
[1644589625380,0.00025372,43715.0,43709.0,1.1]
[1644589625580,0.01,43719.0,43709.0,1.1]
[1644589625581,0.00025372,43711.0,43710.0,0.0459]
[1644589625780,0.01,43719.0,43710.0,0.40923099]
[1644589625781,0.00025372,43716.0,43710.0,0.40923099]
[1644589625978,0.00025372,43717.0,43711.0,0.28091394]
[1644589626181,0.00025372,43718.0,43712.0,0.0959]
[1644589626380,0.01025372,43719.0,43717.0,0.31347526]
[1644589626580,0.01,43719.0,43718.0,0.23401391]
[1644589627725,0.005,43719.0,43718.0,0.58681903]
[1644589628126,0.005,43719.0,43718.0,0.79603308]
[1644589628726,0.005,43719.0,43718.0,0.74015987]
[1644589628926,0.01,43729.0,43720.0,0.057189]
[1644589628927,0.00025503,43723.0,43720.0,0.057189]
[1644589629127,0.19554307,43726.0,43720.0,0.057189]
[1644589629128,0.00074934,43721.0,43720.0,0.057189]
[1644589629831,0.00074934,43721.0,43720.0,0.12435736]
[1644589630029,0.00025503,43726.0,43720.0,0.64182436]
[1644589630232,0.01,43729.0,43721.0,0.285907]
[1644589630233,0.00074932,43723.0,43721.0,0.285907]
[1644589630428,0.00074932,43723.0,43722.0,0.3459]
[1644589630627,0.00074932,43723.0,43722.0,0.0959]
[1644589630875,0.00074932,43723.0,43722.0,0.1959]
[1644589631276,0.00025503,43728.0,43722.0,0.1959]
[1644589631475,0.01,43729.0,43723.0,0.114369]
[1644589631679,0.00025503,43728.0,43724.0,0.0459]
[1644589631877,0.01,43729.0,43722.0,0.057185]
[1644589632076,0.00025503,43728.0,43722.0,0.057185]
[1644589632276,0.01025503,43729.0,43722.0,0.057185]
[1644589632478,0.00025503,43728.0,43722.0,0.057185]
[1644589632676,0.01,43729.0,43722.0,0.057185]
[1644589632677,0.00071154,43727.0,43722.0,0.114375]
[1644589633276,0.29889161,43726.0,43722.0,0.114379]
[1644589633476,0.29914664,43726.0,43722.0,0.114379]
[1644589633678,0.323421,43725.0,43722.0,0.057185]
[1644589633878,0.323421,43724.0,43718.0,0.23]
[1644589634277,0.323421,43724.0,43718.0,0.10600093]
[1644589634278,0.12827374,43723.0,43718.0,0.10600093]
[1644589634525,0.05,43719.0,43718.0,0.10600093]
[1644589634723,0.93277774,43719.0,43718.0,0.10600093]
[1644589634921,1.08277774,43719.0,43718.0,0.10600093]
[1644589635123,1.06486407,43719.0,43700.0,0.18068817]
[1644589635322,1.06486407,43719.0,43702.0,0.057227]
[1644589635323,0.057225,43716.0,43702.0,0.057227]
[1644589635522,0.35748003,43716.0,43702.0,0.057227]
[1644589635722,0.35025503,43716.0,43702.0,0.057227]
[1644589636125,0.256841,43714.0,43702.0,0.057227]
[1644589636329,0.35,43716.0,43702.0,0.057227]
[1644589636330,0.31520849,43707.0,43702.0,0.057227]
[1644589636626,0.08251722,43706.0,43702.0,0.057227]
[1644589637027,0.08277225,43706.0,43702.0,0.057227]
[1644589637227,0.40203327,43706.0,43700.0,0.18068817]
[1644589637828,0.05723172,43705.0,43700.0,0.18068817]
[1644589638026,0.05748675,43705.0,43700.0,0.18068817]
[1644589639370,0.00025503,43705.0,43700.0,0.18068817]
[1644589639573,0.40203327,43706.0,43701.0,0.057223]
[1644589639772,0.00025503,43705.0,43701.0,0.057223]
[1644589639972,0.323421,43704.0,43701.0,0.057223]
[1644589640177,0.08251722,43706.0,43701.0,0.057223]
[1644589640374,0.08251722,43706.0,43700.0,0.18068817]
[1644589640375,0.65063859,43705.0,43700.0,0.18068817]
[1644589640574,0.65063859,43705.0,43700.0,0.41068817]
[1644589640575,0.34738175,43701.0,43700.0,0.41068817]
[1644589640773,0.323421,43701.0,43700.0,0.41068817]
[1644589640973,0.68636542,43701.0,43700.0,0.41068817]
[1644589641376,0.97473395,43701.0,43700.0,0.41068817]
[1644589641575,1.02473395,43701.0,43700.0,0.41068817]
[1644589642222,1.33716124,43701.0,43700.0,0.41068817]
[1644589642624,1.22047451,43701.0,43700.0,0.41068817]
[1644589643224,1.27771851,43701.0,43700.0,0.41068817]
[1644589644024,1.22047451,43701.0,43700.0,0.41068817]
[1644589644225,1.27047451,43701.0,43700.0,0.41068817]
[1644589647668,1.41637451,43701.0,43700.0,0.41068817]
[1644589647969,1.31637451,43701.0,43700.0,0.41068817]
[1644589648765,1.43087351,43701.0,43700.0,0.41068817]
[1644589649165,1.31637451,43701.0,43700.0,0.41068817]
[1644589650422,1.31637451,43701.0,43700.0,0.38568817]
[1644589651924,1.43087251,43701.0,43700.0,0.38568817]
[1644589652124,1.37362251,43701.0,43700.0,0.38568817]
[1644589653366,1.42362251,43701.0,43700.0,0.38568817]
[1644589653566,1.37362251,43701.0,43700.0,0.38568817]
[1644589654265,1.37362251,43701.0,43700.0,0.33990213]
[1644589654467,1.47362251,43701.0,43688.0,0.42]
[1644589654670,0.057258,43695.0,43688.0,0.42]
[1644589654870,0.05,43693.0,43676.0,0.42]
[1644589655069,0.323398,43692.0,43676.0,0.42]
[1644589655268,0.42233884,43691.0,43676.0,0.42]
[1644589655469,0.26536531,43688.0,43685.0,0.00024985]
[1644589655671,0.65292356,43687.0,43685.0,0.00024985]
[1644589655869,0.34857245,43686.0,43685.0,0.00024985]
[1644589656067,0.76787045,43686.0,43685.0,0.00024985]
[1644589656467,0.76787045,43686.0,43677.0,0.0022]
[1644589656670,0.43792695,43685.0,43683.0,0.00075006]
[1644589656869,0.369298,43684.0,43683.0,0.00075006]
[1644589657121,0.71566002,43684.0,43683.0,0.00075006]
[1644589657822,0.71566002,43684.0,43677.0,0.0022]
[1644589657823,0.5828301,43683.0,43677.0,0.0022]
[1644589658025,0.369298,43682.0,43681.0,0.00082007]
[1644589659022,0.369298,43682.0,43681.0,7e-05]
[1644589660323,0.369298,43682.0,43681.0,0.62549194]